Cogmind - Beta 11 *** ADVENTURER MODE // 2022.03.29 @ 04:17:08 Player: Mute Result: Destroyed by D-53 Grenadier with Mini Grenade Launcher Performance ------------- Evolutions (1) 500 Regions Visited (3) 600 Robots Destroyed (64) 320 Value Destroyed (1200) 1200 Prototype IDs (3) 60 Alien Tech Used (0) 0 Bonus (87) 87 TOTAL SCORE: 2767 Bonus ------- High Alert Combat Kills 87 Cogmind --------- Core Integrity 0/400 Matter 300/300 Energy 99/100 System Corruption 0% Temperature Cool (0) Movement Core (50) Location -9/Mines Parts ------- > --- POWER (2) -------- (None) > --- PROPULSION (3) --- (None) > --- UTILITY (2) ------ (None) > --- WEAPON (2) ------- Mining Claw > --- INVENTORY (5) ---- Heat Sink Weapon Shielding Peak State ------------ > --- POWER ------------ Improved Ion Engine Improved Ion Engine > --- PROPULSION ------- Light Treads Light Treads Improved Treads > --- UTILITY ---------- Small Storage Unit Shield Generator > --- WEAPON ----------- Improved Medium Laser Autogun > --- INVENTORY -------- Light Treads Improved Treads Improved Treads Heat Sink Small Storage Unit Terrain Scanner Heavy Assault Rifle Mining Laser [Rating: 17] Favorites ----------- Power Ion Engine Engine Ion Engine Propulsion Light Treads Treads Light Treads Utility Small Storage Unit Device Shield Generator Storage Small Storage Unit Weapon Assault Rifle Energy Gun Improved Medium Laser Ballistic Gun Assault Rifle Slashing Weapon Mining Claw Build | -11 -10 -9 -9 ------- Run | Scr Mat Mat Min Slots Evolved 2 | . . 2 . Power 1 | . . 1 . Propulsion 1 | . . 1 . Utility . | . . . . Weapon . | . . . . Parts Attached 37 | 6 2 26 3 Power 9 | 1 1 6 1 Engine 9 | 1 1 6 1 Core . | . . . . Reactor . | . . . . Propulsion 9 | 2 . 6 1 Treads 9 | 2 . 6 1 Leg . | . . . . Wheel . | . . . . Hover . | . . . . Flight . | . . . . Utility 5 | 1 1 3 . Device 3 | . 1 2 . Storage 2 | 1 . 1 . Processor . | . . . . Hackware . | . . . . Protection . | . . . . Artifact . | . . . . Weapon 14 | 2 . 11 1 Energy Gun 4 | . . 3 1 Energy Cannon . | . . . . Ballistic Gun 7 | 2 . 5 . Ballistic Cannon . | . . . . Launcher . | . . . . Special Weapon . | . . . . Impact Weapon . | . . . . Slashing Weapon 3 | . . 3 . Piercing Weapon . | . . . . Special Melee Weapon . | . . . . Unidentified Prototypes 1 | . . 1 . Parts Lost 17 | . . 7 10 Power 5 | . . 2 3 Propulsion 6 | . . 3 3 Utility 3 | . . 1 2 Weapon 3 | . . 1 2 Highest Loss Streak 10 | . . 4 10 To Critical Strikes . | . . . . Average Slot Usage (%) 95 | . 95 97 78 Engine 18 | . 14 20 17 Treads 30 | . 28 32 24 Device 7 | . 9 7 . Storage 14 | . 14 14 17 Energy Gun 6 | . . 8 6 Ballistic Gun 14 | . 28 11 . Slashing Weapon 1 | . . 1 11 Naked Turns . | . . . . Heaviest Build 30 | 12 15 30 27 Greatest Support 66 | 40 40 66 66 Greatest Overweight (x) 3 | . . . 3 Average Overweight (x) . | . . . . Largest Inventory Capacity 8 | 8 8 8 8 Average Capacity 7 | 6 8 8 7 Most Carried 8 | 1 8 8 4 Average Carried 6 | . 4 7 2 Final Capacity 8 | 8 8 8 5 Final Carried 7 | . 7 3 2 Class Distribution -------------------- 93% | Mutant 6% | Scavenger-Mutant Dominant Class ---------------- Mutant | -10/Materials Mutant | -9/Materials Mutant | -9/Mines Resources | -11 -10 -9 -9 ----------- Run | Scr Mat Mat Min Matter Collected 1111 | 211 195 652 53 Remotely . | . . . . Salvage Created 2057 | . 281 1630 146 Parts 124 | . 16 105 3 Haulers Intercepted 2 | . . 2 . Recyclers Shooed 3 | . . 3 . Parts Field Recycled . | . . . . Retrieved Matter . | . . . . Parts Self-Destructed . | . . . . Prevented . | . . . . Kills | -11 -10 -9 -9 ------- Run | Scr Mat Mat Min Combat Hostiles Destroyed 34 | . 2 29 3 Melee 2 | . . 1 1 Guns 32 | . 2 28 2 Classes Destroyed 12 | . 5 6 1 Worker 12 | . 3 9 . Builder 5 | . 1 4 . Tunneler 1 | . . 1 . Hauler 2 | . . 2 . Recycler 3 | . 1 2 . Operator 1 | . . 1 . Watcher 6 | . 2 4 . Swarmer 9 | . . 9 . Grunt 19 | . 2 15 2 Brawler 1 | . . . 1 Duelist 1 | . . 1 . Sentry 4 | . . 4 . Best Kill Streak 10 | . 3 10 3 Combat Bots Only 4 | . 2 4 3 Max Kills in Single Turn 2 | . 1 2 1 Gunslinging . | . . . . Exploded . | . . . . Melee 1 | . . 1 1 Uniques/NPCs Destroyed . | . . . . Combat | -11 -10 -9 -9 -------- Run | Scr Mat Mat Min Damage Taken 2580 | . 107 1525 948 Core 429 | . 24 150 255 Absorbed by Shields 93 | . . 93 . Core Remaining (%) 95 | 100 90 . . Volleys Fired 179 | . 21 146 12 Largest 2 | . 2 2 1 Hottest 79 | . 40 79 56 Shots Fired 294 | . 42 240 12 Gun 294 | . 42 240 12 Cannon . | . . . . Launcher . | . . . . Special . | . . . . Kinetic 180 | . 42 138 . Thermal 114 | . . 102 12 Explosive . | . . . . Electromagnetic . | . . . . Robot Hit Streak 43 | . 4 43 10 Robot Miss Streak 2 | . 1 2 1 Penetration Max . | . . . . Secondary Targets 5 | . 1 4 . Max Gunslinging Chain 1 | . 1 1 . Shots Hit Robots 220 | . 26 180 14 Core Hits 83 | . 12 66 5 Critical Kills 1 | . . 1 . Critical Parts Destroyed . | . . . . Critical Strikes 13 | . . 11 2 Burn 12 | . . 10 2 Destroy 1 | . . 1 . Melee Attacks 10 | . . 5 5 Impact . | . . . . Slashing 10 | . . 5 5 Piercing . | . . . . Sneak Attacks . | . . . . Combat Hostiles . | . . . . Follow-up Attacks . | . . . . Damage Inflicted 3456 | . 329 2874 253 Guns 3299 | . 329 2786 184 Cannons . | . . . . Explosions . | . . . . Melee 157 | . . 88 69 Ramming . | . . . . Kinetic 1696 | . 329 1367 . Thermal 1603 | . . 1419 184 Explosive . | . . . . Electromagnetic . | . . . . Impact . | . . . . Slashing 157 | . . 88 69 Piercing . | . . . . Highest Corruption 1 | . 1 . . Average Corruption 1 | . 1 . . Corruption Purged . | . . . . Corruption Blocked . | . . . . Effects 2 | . 2 . . Message Errors 1 | . 1 . . Data Loss (minor) 1 | . 1 . . Overload Shots . | . . . . Overflow Damage . | . . . . Projectiles . | . . . . Explosions . | . . . . Melee . | . . . . Knockbacks . | . . . . Impact . | . . . . Kinetic . | . . . . Secondary . | . . . . Self-Inflicted Damage . | . . . . Shots . | . . . . Rammed . | . . . . Targets Rammed . | . . . . Kicked . | . . . . Crushed . | . . . . Highest Temperature 293 | . 5 293 290 Average Temperature 105 | . 5 101 150 Received Heat Transfer 982 | . 78 766 138 Effects 4 | . . 3 1 Interference 4 | . . 3 1 Siege Activations . | . . . . Robots Corrupted . | . . . . Combat Hostiles . | . . . . Parts Fried . | . . . . Impact Corruptions . | . . . . Robots Melted . | . . . . Combat Hostiles . | . . . . Parts Melted 7 | . . 5 2 Heat Transferred 4403 | . . 3848 555 Parts Sabotaged . | . . . . Parts Stolen . | . . . . Parts Stripped . | . . . . Power Chain Reactions . | . . . . Missiles Intercepted . | . . . . Alert | -11 -10 -9 -9 ------- Run | Scr Mat Mat Min Peak Influence 589 | . 119 589 274 Initial 194 | . . 42 194 Average 248 | . 45 330 236 Maximum Alert Level 2 | . . 2 1 Low Security (%) 40 | 100 100 19 17 Level 1 40 | . . 53 82 Level 2 18 | . . 26 . Level 3 . | . . . . Level 4 . | . . . . Level 5 . | . . . . High Security . | . . . . Max Security . | . . . . Squads Dispatched 6 | . 1 5 . Investigation 2 | . 1 1 . Extermination . | . . . . Reinforcement 4 | . . 4 . Assault . | . . . . Garrison . | . . . . Intercept . | . . . . Searches Triggered . | . . . . Construction Impeded 1 | . . 1 . Haulers Reinforced . | . . . . Active Scanning Responses . | . . . . Cargo Convoy Interrupts . | . . . . Stealth | -11 -10 -9 -9 --------- Run | Scr Mat Mat Min Distress Signals 1 | . . 1 . Communications Jammed . | . . . . Distress Signals . | . . . . Times Spotted 64 | . 7 47 10 Peak Tracking Total 6 | . 4 5 6 Tactical Retreats 2 | . . 1 1 Traps | -11 -10 -9 -9 ------- Run | Scr Mat Mat Min Traps Triggered 3 | . 2 1 . Indirectly . | . . . . Trap Hack Attempts . | . . . . Triggered . | . . . . Disarmed . | . . . . Reprogrammed . | . . . . Reused . | . . . . Traps Extracted . | . . . . Installed . | . . . . Triggered . | . . . . Machines | -11 -10 -9 -9 ---------- Run | Scr Mat Mat Min Machines Disabled 1 | . . 1 . Max in Single Turn 1 | . . 1 . Machines Sabotaged . | . . . . Garrisons Compromised . | . . . . Overloaded Fab Kills . | . . . . Hacking | -11 -10 -9 -9 --------- Run | Scr Mat Mat Min Machines Accessed 4 | . 1 3 . Terminals 2 | . . 2 . Fabricators . | . . . . Repair Stations . | . . . . Recycling Units 2 | . 1 1 . Scanalyzers . | . . . . Garrison Access . | . . . . Total Hacks 14 | . 5 9 . Successful 11 | . 3 8 . Failed 3 | . 2 1 . Catastrophic . | . . . . Database Lockouts . | . . . . Manual 1 | . . 1 . Terminals 8 | . . 8 . Fabricators . | . . . . Repair Stations . | . . . . Recycling Units 6 | . 5 1 . Scanalyzers . | . . . . Garrison Access . | . . . . Terminal Hacks 7 | . . 7 . Record 1 | . . 1 . Prototype ID Bank 1 | . . 1 . Emergency Access Points 1 | . . 1 . Locate Traps 1 | . . 1 . Transport Status 1 | . . 1 . Zone Layout 2 | . . 2 . Fabricator Hacks . | . . . . Repair Station Hacks . | . . . . Recycling Unit Hacks 4 | . 3 1 . Recycle Component 2 | . 2 . . Process 1 | . 1 . . Report Inventory 1 | . . 1 . Scanalyzer . | . . . . Garrison Access Hacks . | . . . . Unauthorized Hacks . | . . . . Terminals . | . . . . Fabricators . | . . . . Repair Stations . | . . . . Recycling Units . | . . . . Scanalyzers . | . . . . Garrison Access . | . . . . Data Cores Recovered . | . . . . Used . | . . . . Hacking Detections 1 | . 1 . . Full Trace Events . | . . . . Feedback Events . | . . . . Feedback Blocked . | . . . . Robot Schematics Acquired . | . . . . Robots Built . | . . . . Authchips . | . . . . Time . | . . . . Total Robot Build Rating . | . . . . Part Schematics Acquired . | . . . . Parts Built . | . . . . Authchips . | . . . . Time . | . . . . Total Part Build Rating . | . . . . Parts Repaired . | . . . . Time . | . . . . Parts Recycled 2 | . 2 . . Recycled Matter 47 | . 47 . . Retrieved Matter . | . . . . Retrieved Components . | . . . . Parts Scanalyzed . | . . . . Part Schematics Acquired . | . . . . Parts Damaged . | . . . . Bothacking | -11 -10 -9 -9 ------------ Run | Scr Mat Mat Min Used RIF Installer . | . . . . Robots Hacked . | . . . . Non-combat . | . . . . Combat . | . . . . Robot Hacks Applied . | . . . . Relay Couplers Released . | . . . . Fabnet Peak Effective % . | . . . . Robots Rewired . | . . . . Allies Hacked . | . . . . Hacks Repelled . | . . . . Allies | -11 -10 -9 -9 -------- Run | Scr Mat Mat Min Total Allies . | . . . . Largest Group . | . . . . Highest-Rated Group . | . . . . Highest-Rated Ally . | . . . . Total Orders . | . . . . Ally Attacks . | . . . . Total Damage . | . . . . Kills . | . . . . Allies Corrupted . | . . . . Allies Melted . | . . . . Intel | -11 -10 -9 -9 ------- Run | Scr Mat Mat Min Robot Analysis Total . | . . . . Derelict Logs Recovered . | . . . . Drone Launches . | . . . . Drone Recoveries . | . . . . Exploration | -11 -10 -9 -9 ------------- Run | Scr Mat Mat Min Turns Passed 1699 | 95 358 1173 73 Spaces Moved 702 | 50 177 456 19 Core 5 | 2 . . 3 Treads 697 | 48 177 456 16 Legs . | . . . . Wheels . | . . . . Hover . | . . . . Flight . | . . . . Fastest Speed 50 | 50 160 160 50 Average Speed 159 | 155 160 160 150 Slowest Speed 200 | 160 160 160 200 Overloaded Moves . | . . . . Propulsion Burnouts . | . . . . Robots Hopped . | . . . . Cave-ins Triggered . | . . . . Exploration Rate (%) 22 | 4 28 48 10 Regions Visited 3 Branch Regions 1 Pre-discovered Areas . | . . . . Known Exits Taken . | . . . . Unknown Exits Taken 3 | 1 1 1 . Scrap Searched . | . . . . Spaces Dug . | . . . . Terrain Destroyed . | . . . . Melee . | . . . . Projectile . | . . . . AOE . | . . . . Terrain Rammed . | . . . . Walls Destroyed . | . . . . Machines Disabled . | . . . . Actions | -11 -10 -9 -9 --------- Run | Scr Mat Mat Min Total 980 | 67 209 663 41 Wait 11 | 6 . 5 . Move 699 | 49 176 455 19 Hop . | . . . . Pick Up 31 | 6 10 13 2 Fast Attach 3 | . . 3 . Attach 20 | 6 1 10 3 Detach . | . . . . Swap 14 | . 1 13 . Drop 13 | . . 13 . Fire 179 | . 21 146 12 Melee 10 | . . 5 5 Ram . | . . . . Kick . | . . . . Crush . | . . . . Escape Stasis . | . . . . Rewire . | . . . . Trap . | . . . . Miscellaneous . | . . . . Route ------- -11/Scrapyard -10/Materials -9/Materials -9/Mines History --------- Turn | Location | Event 48 | -11/Scrapyard | Discovered new exit (range 15) 96 | -11/Scrapyard | Entered Materials 310 | -10/Materials | Build established: Mutant 317 | -10/Materials | Discovered new exit (range 7) 454 | -10/Materials | Entered another Materials area 454 | -9/Materials | Evolved 2 slots: Power x1, Propulsion x1 1572 | -9/Materials | Lost 4 parts (1p2n1w) 1591 | -9/Materials | Discovered new exit (range 14) 1627 | -9/Materials | Entered Mines 1628 | -9/Mines | Assembled infested the area 1648 | -9/Mines | Core integrity fell below 50% 1699 | -9/Mines | Core integrity fell below 20% 1700 | -9/Mines | Destroyed by D-53 Grenadier with Mini Grenade Launcher Last Messages --------------- 01686_ S-10 Pest destroyed. 01688_ Sml. Storage Unit destroyed. 01689_ Beam Rifle destroyed. 01690_ S-10 Pest destroyed. 01691_ The unstable cave ceiling collapses. 01691_ S-10 Pest destroyed. 01692_ The unstable cave ceiling collapses. 01694_ Imp. Treads destroyed. 01695_ U-05 Engineer lays Concrete. 01695_ K-01 Serf collects debris. 01696_ U-05 Engineer builds a Wall. 01696_ Ion Engine destroyed. 01696_ Lgt. Treads destroyed. 01698_ The unstable cave ceiling collapses. 01698_ Ion Engine destroyed. 01699_ The unstable cave ceiling collapses. 01699_ Sml. Storage Unit destroyed. 01700_ The unstable cave ceiling collapses. 01700_ U-05 Engineer lays Concrete. 01700_ U-05 Engineer builds a Wall. Map ----- +----------------------------------------------------+ | ?????????????????????????????????????????????????? | | ?????????????????????????????????????????????????? | | ?????????????????????????????????????????????????? | | ?????????????????????????????????????????????????? | | ?????????????????????????????????????????????????? | | ?????????????????????????????????????????????????? | | ?????????????????????????????????????????????????? | | ?????????????????????????????????????????????????? | | ?????????????????????????????????????????????????? | | ?????????????????????????????????????????????????? | | ?????????????????????????????????????????????????? | | ?????????????????????????????????????????????????? | | ?????????????????????????????????????????????????? | | ?????????????????????????????????????????????????? | | ?????????????????????????????????????????????????? | | ?????????????????????????????????????????????????? | | ?????????????????????????????????????????????????? | | ?????????????????????????????????????????????????? | | ?????????????????????????????????????????????????? | | ???????????????????????????????#?????????????????? | | ?????????????????????????????? ##????????????????? | | ??????????????????????###???? #????????????????? | | ????????????????####### #### #????????????????? | | ????????????????? # # #?????????????????? | | ?????????????????# # #?????????????????? | | ?????????????????# # @ #?????????????????? | | ???????????????### # ##?????????????????? | | ??????????????## #d ## #??????????????????? | | ????????????### #????????????????????? | | ?????????#### ##????????????????????? | | ?????????# #?????????????????????? | | ????????### d # ##?????????????????????? | | ????????# # #??????????????????????? | | ????????## *##??????????????????????? | | ?????????# # ?????????????????????? | | ?????????# # ### ??????????????????? | | ?????????# # ## #????##?????????????????? | | ?????????## # ## #??????????????????????? | | ??????????#### ###### #?????????????????????? | | ?????????????####????## #?????????????????????? | | ???????????????????????# ##?????????????????????? | | ????????????????????????###??????????????????????? | | ?????????????????????????????????????????????????? | | ?????????????????????????????????????????????????? | | ?????????????????????????????????????????????????? | | ?????????????????????????????????????????????????? | | ?????????????????????????????????????????????????? | | ?????????????????????????????????????????????????? | | ?????????????????????????????????????????????????? | | ?????????????????????????????????????????????????? | +----------------------------------------------------+ Best States ------------- Heat Dissipation 28 Energy Generation 19 Energy Capacity 430 Matter Stores 300 Matter Capacity 300 Sight Range 16 Terrain Scan Range 14 Terrain Scan Density 10 Resistance: KI 20 Resistance: TH 20 Resistance: EX 20 Resistance: EM 20 Resistance: I 20 Resistance: S 20 Resistance: P 20 Evasion (%) 50 Recoil Reduction 3 Offensive Hacking 10 Item Schematics ----------------- None Robot Schematics ------------------ None Fabricated ------------ Nothing Alien Tech Used ----------------- None Achievements -------------- None Challenges ------------ None Game ------ Seed SwordConcussiveMatrix Manual? 0 Play Time 00:43:25 Cumulative 22.3 hours Start 2022.03.29 @ 03:17:18 End 2022.03.29 @ 04:17:08 Sessions 1 Manual Loads 0 Difficulty Adventurer Special Mode None Game No. 32 Rogue 30 Adventurer 2 Explorer 0 Win Type - Total 0 Types 0/0/0/0/0/0/0/0/0 Lore% 5 Gallery% 15 Achievement% 8 Wizard Run 0 Options --------- ASCII 0 Keyboard 0 Movement Mouse Keybinds 0 Fullscreen 0 Font 16/SmallcapsGlow Map View 76x50 Tactical HUD 1 Map Filters NONE Filters NONE Steam 1 RUN: db932351-89e7-465c-8ad3-47c6bcb9856e